Cogmind - Beta 16 @@@ ROGUE MODE // 2025.12.25 @ 22:31:09 Player: Moose Result: Destroyed by G-47 Trooper with Particle Gun Performance ------------- Evolutions (0) 0 Regions Visited (1) 200 Robots Destroyed (7) 35 Value Destroyed (148) 148 Prototype IDs (0) 0 Alien Tech Used (0) 0 Bonus (0) 0 TOTAL SCORE: 383 Bonus ------- None Cogmind --------- Core Integrity 0/250 Matter 265/300 Energy 125/125 System Corruption 0% Temperature Cool (58) Movement Walking (470) Ox5 Location -10/Materials Parts ------- > --- POWER (1) -------- Light Ion Engine > --- PROPULSION (2) --- Aluminum Leg Aluminum Leg > --- UTILITY (2) ------ Large Storage Unit Huge Storage Unit > --- WEAPON (2) ------- Medium Laser Light Assault Rifle > --- INVENTORY (25) --- Light Ion Engine Aluminum Leg Aluminum Leg Small Storage Unit Small Storage Unit Medium Storage Unit Medium Storage Unit Large Storage Unit Medium Battery (150) High-capacity Battery (106) Small Matter Pod (0) Medium Laser Mining Laser Peak State ------------ > --- POWER ------------ Light Ion Engine > --- PROPULSION ------- Aluminum Leg Aluminum Leg > --- UTILITY ---------- Large Storage Unit Medium Battery > --- WEAPON ----------- Medium Laser Light Assault Rifle > --- INVENTORY -------- Light Ion Engine Aluminum Leg Aluminum Leg Small Storage Unit Small Storage Unit Medium Storage Unit Medium Storage Unit Large Storage Unit Small Matter Pod Medium Laser [Rating: 8] Favorites ----------- Power Light Ion Engine Engine Light Ion Engine Propulsion Aluminum Leg Leg Aluminum Leg Utility Medium Battery Storage Medium Battery Weapon Light Assault Rifle Energy Gun Medium Laser Ballistic Gun Light Assault Rifle Build | -11 -10 ------- Run | Yrd Mat Slots Evolved . | . . Power . | . . Propulsion . | . . Utility . | . . Weapon . | . . Parts Attached 8 | 4 4 Power 1 | 1 . Engine 1 | 1 . Core . | . . Reactor . | . . Propulsion 2 | 2 . Treads . | . . Leg 2 | 2 . Wheel . | . . Hover . | . . Flight . | . . Utility 3 | . 3 Device . | . . Storage 3 | . 3 Processor . | . . Hackware . | . . Protection . | . . Artifact . | . . Weapon 2 | 1 1 Energy Gun 1 | . 1 Energy Cannon . | . . Ballistic Gun 1 | 1 . Ballistic Cannon . | . . Launcher . | . . Special Weapon . | . . Impact Weapon . | . . Slashing Weapon . | . . Piercing Weapon . | . . Special Melee Weapon . | . . Unidentified Prototypes . | . . Parts Lost . | . . Power . | . . Propulsion . | . . Utility . | . . Weapon . | . . Highest Loss Streak . | . . To Critical Strikes . | . . Average Backups 4 | 2 5 Power . | . 1 Propulsion 1 | . 1 Utility 1 | . 1 Weapon 1 | 1 1 Tool/Special . | . . Unused Backups 10 | . 10 Power 1 | . 1 Propulsion 2 | . 2 Utility 5 | . 5 Weapon 2 | . 2 Tool/Special . | . . Average Slot Usage (%) 82 | . 82 Engine 14 | . 14 Leg 28 | . 28 Storage 11 | . 11 Energy Gun 14 | . 14 Ballistic Gun 14 | . 14 Peak Build Rating 8 | 4 8 Average Rating 5 | 3 5 On Entrance 2 | . 4 Avg Prop Armor Cover (%) . | . . Naked Turns . | . . Heaviest Build 106 | 4 106 Greatest Support 20 | 20 20 Greatest Overweight (x) 5 | . 5 Average Overweight (x) . | . . Largest Inventory Capacity 25 | 5 25 Average Capacity 7 | 5 9 Most Carried 14 | 4 14 Average Carried 4 | 2 5 Final Capacity 25 | 5 25 Final Carried 13 | 4 13 Class Distribution -------------------- 100% | Mutant Dominant Class ---------------- Mutant | -10/Materials Resources | -11 -10 ----------- Run | Yrd Mat Matter Collected 277 | 260 17 Remotely . | . . Salvage Created 129 | 87 42 Parts 9 | 6 3 Haulers Intercepted . | . . Recyclers Shooed . | . . Parts Field Recycled . | . . Retrieved Matter . | . . Parts Self-Destructed . | . . Prevented . | . . Parts Restored . | . . Kills | -11 -10 ------- Run | Yrd Mat Combat Hostiles Destroyed 3 | 1 2 Guns 2 | 1 1 AOE 1 | . 1 Classes Destroyed 3 | 3 . Worker 2 | 1 1 Tunneler 2 | 2 . Grunt 3 | 1 2 Best Kill Streak 3 | 2 3 Combat Bots Only 2 | 1 2 Max Kills in Single Turn 2 | 1 2 Gunslinging . | . . Exploded 1 | . 1 Melee . | . . Uniques/NPCs Destroyed . | . . Combat | -11 -10 -------- Run | Yrd Mat Hostile Shots Fired 26 | 9 17 Missed 9 | 2 7 Hits 17 | 7 10 Projectile 17 | 7 10 Damage Taken 380 | 75 305 Core 256 | 22 234 Absorbed by Shields . | . . Core Remaining (%) 91 | 91 . Volleys Fired 32 | 20 12 Largest 2 | 1 2 Hottest 70 | 20 70 Shots Fired 44 | 20 24 Gun 44 | 20 24 Cannon . | . . Launcher . | . . Special . | . . Kinetic 32 | 20 12 Thermal 12 | . 12 Explosive . | . . Electromagnetic . | . . Robot Hit Streak 6 | 6 4 Robot Miss Streak 3 | 1 3 Penetration Max . | . . Secondary Targets . | . . Shots Hit Robots 27 | 17 10 Core Hits 16 | 9 7 Critical Kills . | . . Critical Parts Destroyed . | . . Critical Strikes . | . . Melee Attacks . | . . Impact . | . . Slashing . | . . Piercing . | . . Sneak Attacks . | . . Combat Hostiles . | . . Follow-up Attacks . | . . Damage Inflicted 571 | 135 436 Guns 223 | 135 88 Cannons . | . . Explosions 348 | . 348 Melee . | . . Ramming . | . . Kinetic 185 | 135 50 Thermal 386 | . 386 Explosive . | . . Electromagnetic . | . . Impact . | . . Slashing . | . . Piercing . | . . Highest Corruption . | . . Average Corruption . | . . Corruption Purged . | . . Corruption Blocked . | . . Overload Shots . | . . Overflow Damage 93 | . 93 Projectiles . | . . Explosions 93 | . 93 Melee . | . . Knockbacks . | . . Impact . | . . Kinetic . | . . Secondary . | . . Self-Inflicted Damage 187 | . 187 Shots 2 | . 2 Rammed . | . . Targets Rammed . | . . Kicked . | . . Crushed . | . . Highest Temperature 202 | 6 202 Average Temperature 79 | 6 86 Received Heat Transfer 108 | 42 66 Siege Activations . | . . Martial Activations . | . . Shielding Activations . | . . Robots Disrupted . | . . Combat Hostiles . | . . Robots Corrupted . | . . Combat Hostiles . | . . Parts Fried . | . . Impact Corruptions . | . . Robots Melted . | . . Combat Hostiles . | . . Parts Melted 2 | . 2 Heat Transferred 311 | . 311 Parts Sabotaged . | . . Parts Stolen . | . . Parts Stripped . | . . Power Chain Reactions . | . . Alert | -11 -10 ------- Run | Yrd Mat Maximum Alert Level . | . . Low Security (%) 100 | 100 100 Level 1 . | . . Level 2 . | . . Level 3 . | . . Level 4 . | . . Level 5 . | . . High Security . | . . Max Security . | . . Peak Influence 122 | 20 122 Initial . | . . Average 38 | 3 60 Influence Increases 171 | 35 136 Destroy 0b10 Robot/C 60 | 20 40 Destroy 0b10 Robot/NC 20 | 15 5 Successful Hack 4 | . 4 Disable Machine 45 | . 45 Destroy Structure 42 | . 42 Influence Decreases 135 | 35 100 Time Decay 135 | 35 100 Squads Dispatched 1 | . 1 Investigation 1 | . 1 Extermination . | . . Reinforcement . | . . Assault . | . . Garrison . | . . Intercept . | . . Searches Triggered . | . . Construction Impeded . | . . Haulers Reinforced . | . . Active Scanning Responses . | . . Cargo Convoy Interrupts . | . . Stealth | -11 -10 --------- Run | Yrd Mat Distress Signals . | . . Communications Jammed . | . . Distress Signals . | . . Times Spotted 6 | 1 5 Peak Tracking Total 3 | 1 3 Tactical Retreats . | . . Traps | -11 -10 ------- Run | Yrd Mat Traps Triggered . | . . Indirectly . | . . Trap Hack Attempts . | . . Triggered . | . . Disarmed . | . . Reprogrammed . | . . Reused . | . . Traps Extracted . | . . Installed . | . . Triggered . | . . Machines | -11 -10 ---------- Run | Yrd Mat Machines Disabled 3 | . 3 Max in Single Turn 3 | . 3 Machines Repaired . | . . Machines Dismantled . | . . Machines Sabotaged . | . . Overloaded Fab Kills . | . . Hacking | -11 -10 --------- Run | Yrd Mat Machines Accessed 4 | . 4 Terminals 3 | . 3 Fabricators . | . . Repair Stations . | . . Recycling Units 1 | . 1 Scanalyzers . | . . Garrison Access . | . . Total Hacks 11 | . 11 Successful 5 | . 5 Failed 6 | . 6 Catastrophic 1 | . 1 Database Lockouts . | . . Manual . | . . Terminals 8 | . 8 Fabricators . | . . Repair Stations . | . . Recycling Units 3 | . 3 Scanalyzers . | . . Garrison Access . | . . Terminal Hacks 4 | . 4 Record 2 | . 2 Alert Level 1 | . 1 Dispatch Records 1 | . 1 Fabricator Hacks . | . . Repair Station Hacks . | . . Recycling Unit Hacks 1 | . 1 Retrieve Components 1 | . 1 Scanalyzer . | . . Garrison Access Hacks . | . . Unauthorized Hacks . | . . Terminals . | . . Fabricators . | . . Repair Stations . | . . Recycling Units . | . . Scanalyzers . | . . Garrison Access . | . . Data Cores Recovered . | . . Used . | . . Hacking Detections 4 | . 4 Full Trace Events 2 | . 2 Feedback Events . | . . Feedback Blocked . | . . Robot Schematics Acquired . | . . Robots Built . | . . Authchips . | . . Time . | . . Total Robot Build Rating . | . . Part Schematics Acquired . | . . Parts Built . | . . Authchips . | . . Time . | . . Total Part Build Rating . | . . Part Studies Acquired . | . . Parts Repaired . | . . Time . | . . Parts Recycled . | . . Recycled Matter . | . . Retrieved Matter . | . . Retrieved Components 3 | . 3 Parts Scanalyzed . | . . Part Schematics Acquired . | . . Parts Damaged . | . . Bothacking | -11 -10 ------------ Run | Yrd Mat Used RIF Installer . | . . Robots Hacked . | . . Non-combat . | . . Combat . | . . Robot Hacks Applied . | . . Relay Couplers Released . | . . Fabnet Peak Effective % . | . . Robots Rewired . | . . Allies Hacked . | . . Hacks Repelled . | . . Allies | -11 -10 -------- Run | Yrd Mat Total Allies . | . . Largest Group . | . . Highest-Rated Group . | . . Highest-Rated Ally . | . . Total Orders . | . . Ally Attacks . | . . Total Damage . | . . Kills . | . . Allies Corrupted . | . . Allies Melted . | . . Intel | -11 -10 ------- Run | Yrd Mat Active Infowar (turns) . | . . Robot Analysis Total . | . . Derelict Logs Recovered . | . . Drone Launches . | . . Drone Recoveries . | . . Exploration | -11 -10 ------------- Run | Yrd Mat Turns Passed 434 | 171 263 Spaces Moved 264 | 115 149 Core 21 | 21 . Treads . | . . Legs 243 | 94 149 Wheels . | . . Hover . | . . Flight . | . . Fastest Speed 50 | 50 120 Average Speed 126 | 107 142 Slowest Speed 470 | 120 470 Overloaded Moves . | . . Propulsion Burnouts . | . . Robots Hopped . | . . Potential Cave-ins . | . . Cave-ins Triggered . | . . Exploration Rate (%) 19 | 6 32 Regions Visited 1 Branch Regions . Pre-discovered Areas . | . . Known Exits Taken . | . . Unknown Exits Taken 1 | 1 . Scrap Searched . | . . Spaces Dug . | . . Terrain Destroyed 43 | . 43 Melee . | . . Projectile . | . . AOE 43 | . 43 Terrain Rammed . | . . Walls Destroyed . | . . Machines Disabled . | . . Actions | -11 -10 --------- Run | Yrd Mat Total 326 | 146 180 Wait . | . . Move 263 | 114 149 Hop . | . . Pick Up 21 | 8 13 Fast Attach . | . . Attach 8 | 4 4 Detach 1 | . 1 Swap . | . . Drop 1 | . 1 Fire 32 | 20 12 Melee . | . . Ram . | . . Kick . | . . Crush . | . . Escape Stasis . | . . Rewire . | . . Trap . | . . Miscellaneous . | . . Route ------- -11/Scrapyard -10/Materials (discovered 1 exit: [*Mat]) History --------- Turn | Location | Event 2 | -11/Scrapyard | Met Revision 17 73 | -11/Scrapyard | Discovered new exit (range 8) 172 | -11/Scrapyard | Entered Materials 247 | -10/Materials | Core integrity fell below 50% 247 | -10/Materials | Core integrity fell below 20% 307 | -10/Materials | Build established: Mutant 390 | -10/Materials | Discovered new exit (range 8) 435 | -10/Materials | Destroyed by G-47 Trooper with Particle Gun Last Messages --------------- U-05 Engineer works on Pressure Siphon. EXIT=FOUND U-05 Engineer works on Pressure Siphon. Connecting with Terminal... U-05 Engineer works on Pressure Siphon. Acquired Sml. Matter Pod. U-05 Engineer works on Pressure Siphon. U-05 Engineer completes Pressure Siphon. Connecting with Recycling Unit... >>Retrieve(Components) Retrieving 3 components... Hcp. Battery Mining Laser Huge Storage Unit Acquired Huge Storage Unit. Acquired Hcp. Battery. Pressure Siphon comes online. U-05 Engineer works on Pressure Siphon. Acquired Mining Laser. U-05 Engineer works on Pressure Siphon. Map ----- +----------------------------------------------------+ | " " ## + # #?? | | " " + # ### ########?? | | " % # # # #?# #????????? | | " %# #####+## #?# #????????? | | " + #?# #????????? | | " # ### #####????? | | "#"" "# "" ### ##???? | | # # # "" #?# #???? | | " ### " #?# #???? | | " ####?# #?# #???? | | #????# ####+### #???? | | # #????# # ## ##???? | | ## ##????# # #####????? | | ?# #?????# u< # #????????? | | ?# #?????# # #????????? | | ?# +?????# # #????????? | | ?# #?????# """" # #????????? | | ?# #?????# """" # #????????? | | ?# #?????# """" # #????????? | | ? ?????# ###+####???????? | | ? ????? #???????? | | ? ????????"Y" +???????? | | ??????????????""" #???????? | | ??????????????###### #???????? | | ??????????????????#T #???????? | | ??????????????????## @ #???????? | | ???????????????????# "Y" #???????? | | ???????????????? """g #???? | | ???????????? < #???? | | ???????? g #???? | | ???????##############+##### #####???? | | ???????????????????? ????? #???????? | | ??????????????????? ?????? #???????? | | ?????????????????? ?????? #???????? | | ??????????????????? ??????? #???????? | | ??????????????????????????? #???????? | | ??????????????????????????? #???????? | | ??????????????????????????? #???????? | | ???????????????????????????? #???????? | | ???????????????????????????? ????????? | | ??????????????????????????????????????? | | ??????????????????????????????????????? | | ??????????????????????????????????????? | | ??????????????????????????????????????? | | ??????????????????????????????????????? | | ??????????????????????????????????????? | | ??????????????????????????????????????? | | ??????????????????????????????????????? | | ??????????????????????????????????????? | | ??????????????????????????????????????? | +----------------------------------------------------+ Best States ------------- Heat Dissipation 25 Energy Generation 10 Energy Capacity 275 Matter Stores 300 Matter Capacity 300 Sight Range 16 Terrain Scan Density 10 Evasion (%) 55 Item Schematics ----------------- None Robot Schematics ------------------ None Fabricated ------------ Nothing Repaired ---------- Nothing Studied --------- None Alien Tech Used ----------------- None Achievements -------------- None Challenges ------------ None Game ------ Seed NetworkAntisysImmobilizer Manual? 0 Play Time 00:11:03 Cumulative 1.1 hours Start 2025.12.25 @ 22:15:11 End 2025.12.25 @ 22:31:09 Sessions 1 Manual Loads 0 Difficulty Rogue Special Mode None Game No. 3 Rogue 3 Adventurer 0 Explorer 0 Win Type - Total 0 Types 0/0/0/0/0/0/0/0/0/0 Lore% 0 Gallery% 3 Achievement% 4 Wizard Run 0 Options --------- Layout 1 ASCII 0 Keyboard 0 Movement Mouse Keybinds 0 Fullscreen 1 Font 16/SmallcapsGlow Map View 55x38 Zoom Use 0% Tactical HUD 0 Map Filters NONE Filters NONE Steam 1 RUN: 749c7c15-0e55-48ff-845e-81741a14ff49